{"text_format":"3","workbook":"xlsx","n_sheets":2,"sheets":["Svara samazināšanas izsekotājs","aprēķini"],"not_rendered":{"charts":1,"defined_names":10},"read":"whole","date_system":"1900"}

{"sheet":"Svara samazināšanas izsekotājs","index":0,"n_rows":19,"n_cols":9,"rows_kept":19,"merged":[[0,3,0,7],[0,8,0,9],[1,3,2,9]]}
[null,"MĒRĶA SVARS","DIAGRAMMAS SKATS","Vārds, uzvārds",{"$nulls":4},"SVARA ZUDUMS"]
[{"$nulls":3},"ŽURNĀLS"]
[null,{"v":172,"d":"172.0"},"NEDĒĻAS"]
[null,"RĀDĪT MĒRĶA SVARU","Jā"]
[null,"Svara izsekotāja diagramma, kas izseko pašreizējo svaru, ir šajā šūnā. Šūnā C4 atlasiet \"Jā\", lai rādītu mērķa svara līkni virs apgabalu diagrammas."]
[]
[null,"DATUMS","SVARS"]
[null,{"$f":"TODAY()-77","v":"2022-01-19"},{"v":176,"d":"176.0"}]
[null,{"$f":"TODAY()-70","v":"2022-01-26"},{"v":176,"d":"176.0"}]
[null,{"$f":"TODAY()-63","v":"2022-02-02"},177.6]
[null,{"$f":"TODAY()-56","v":"2022-02-09"},176.5]
[null,{"$f":"TODAY()-49","v":"2022-02-16"},176.1]
[null,{"$f":"TODAY()-42","v":"2022-02-23"},{"v":174,"d":"174.0"}]
[null,{"$f":"TODAY()-35","v":"2022-03-02"},173.5]
[null,{"$f":"TODAY()-28","v":"2022-03-09"},{"v":173,"d":"173.0"}]
[null,{"$f":"TODAY()-21","v":"2022-03-16"},{"v":172,"d":"172.0"}]
[null,{"$f":"TODAY()-14","v":"2022-03-23"},{"v":172,"d":"172.0"}]
[null,{"$f":"TODAY()-7","v":"2022-03-30"},{"v":173,"d":"173.0"}]
[null,{"$f":"TODAY()","v":"2022-04-06"},{"v":172,"d":"172.0"}]

{"sheet":"aprēķini","index":1,"n_rows":107,"n_cols":17,"rows_kept":107,"hidden":true}
["*** Šī lapa paliek neredzama ***"]
[]
[{"$f":"COUNTIF(A5:A107,FALSE)","v":12},"Periodi","Vērtības",{"$nulls":3},{"$f":"COUNTIF(H5:H28,\">\"&0)","v":4},"Periodi",null,"Vērtības"]
[null,"Nedēļa",null,null,{"$f":"IFERROR(IF(Rādīt_mērķa_svaru=\"Jā\", TRUE, FALSE),FALSE)","v":true},null,null,"Mēnesis","Mēn. beig."]
[{"$f":"FALSE","v":false},{"$f":"IFERROR(IF(LEN('Svara samazināšanas izsekotājs'!$B8)=0,TODAY(),'Svara samazināšanas izsekotājs'!$B8),TODAY())","v":"2022-01-19"},{"$f":"IFERROR(IF(LEN('Svara samazināšanas izsekotājs'!$C8)=0,Mērķa_svars,'Svara samazināšanas izsekotājs'!$C8),0)","v":176},{"$f":"IFERROR(IF(MIN(Diagrammas_periodi)=0,TODAY(),MIN(Diagrammas_periodi)),TODAY())","v":"2022-01-19"},{"$f":"IFERROR(IF($A$5,0,IF($E$4,Mērķa_svars,NA())),0)","v":172},null,null,{"$f":"IFERROR(IF($A$5,TODAY(),DATE(YEAR($B5),MONTH($B5),1)),\"\")","v":"2022-01-01"},{"$f":"IFERROR(IF($A$5,TODAY(),EOMONTH($H5,0)),\"\")","v":"2022-01-31"},{"$f":"IFERROR(IF($A$5,0,AVERAGEIFS(Svars[SVARS],Svars[DATUMS],\">=\"&$H5,Svars[DATUMS],\"<=\"&$I5)),NA())","v":176}]
[{"$f":"IF((LEN('Svara samazināšanas izsekotājs'!$C9)=0),TRUE)","v":false},{"$f":"IFERROR(IF(A6,0,IF(LEN('Svara samazināšanas izsekotājs'!$B9)=0,0,'Svara samazināšanas izsekotājs'!$B9)),\"\")","v":"2022-01-26"},{"$f":"IFERROR(IF(A6,0,IF(LEN('Svara samazināšanas izsekotājs'!$C9)=0,0,'Svara samazināšanas izsekotājs'!$C9)),\"\")","v":176},{"$f":"IFERROR(IF(MAX(Diagrammas_periodi)=0,TODAY(),MAX(Diagrammas_periodi)),TODAY())","v":"2022-04-06"},{"$f":"IFERROR(IF($A$5,0,IF($E$4,Mērķa_svars,NA())),0)","v":172},null,null,{"$f":"IF($I5+1>MAX($B:$B),NA(),$I5+1)","v":"2022-02-01"},{"$f":"EOMONTH($H6,0)","v":"2022-02-28"},{"$f":"IFERROR(AVERAGEIFS(Svars[SVARS],Svars[DATUMS],\">=\"&$H6,Svars[DATUMS],\"<=\"&$I6),NA())","v":176.05}]
[{"$f":"IF((LEN('Svara samazināšanas izsekotājs'!$C10)=0),TRUE)","v":false},{"$f":"IFERROR(IF(A7,0,IF(LEN('Svara samazināšanas izsekotājs'!$B10)=0,0,'Svara samazināšanas izsekotājs'!$B10)),\"\")","v":"2022-02-02"},{"$f":"IFERROR(IF(A7,0,IF(LEN('Svara samazināšanas izsekotājs'!$C10)=0,0,'Svara samazināšanas izsekotājs'!$C10)),\"\")","v":177.6},{"$nulls":4},"2022-03-01","2022-03-31",{"$f":"IFERROR(AVERAGEIFS(Svars[SVARS],Svars[DATUMS],\">=\"&$H7,Svars[DATUMS],\"<=\"&$I7),NA())","v":172.7}]
[{"$f":"IF((LEN('Svara samazināšanas izsekotājs'!$C11)=0),TRUE)","v":false},{"$f":"IFERROR(IF(A8,0,IF(LEN('Svara samazināšanas izsekotājs'!$B11)=0,0,'Svara samazināšanas izsekotājs'!$B11)),\"\")","v":"2022-02-09"},{"$f":"IFERROR(IF(A8,0,IF(LEN('Svara samazināšanas izsekotājs'!$C11)=0,0,'Svara samazināšanas izsekotājs'!$C11)),\"\")","v":176.5},{"$nulls":4},"2022-04-01","2022-04-30",{"$f":"IFERROR(AVERAGEIFS(Svars[SVARS],Svars[DATUMS],\">=\"&$H8,Svars[DATUMS],\"<=\"&$I8),NA())","v":172}]
[{"$f":"IF((LEN('Svara samazināšanas izsekotājs'!$C12)=0),TRUE)","v":false},{"$f":"IFERROR(IF(A9,0,IF(LEN('Svara samazināšanas izsekotājs'!$B12)=0,0,'Svara samazināšanas izsekotājs'!$B12)),\"\")","v":"2022-02-16"},{"$f":"IFERROR(IF(A9,0,IF(LEN('Svara samazināšanas izsekotājs'!$C12)=0,0,'Svara samazināšanas izsekotājs'!$C12)),\"\")","v":176.1},{"$nulls":4},{"$error":"#N/A"},{"$error":"#N/A"},{"$f":"IFERROR(AVERAGEIFS(Svars[SVARS],Svars[DATUMS],\">=\"&$H9,Svars[DATUMS],\"<=\"&$I9),NA())","v":{"$error":"#N/A"}}]
[{"$f":"IF((LEN('Svara samazināšanas izsekotājs'!$C13)=0),TRUE)","v":false},{"$f":"IFERROR(IF(A10,0,IF(LEN('Svara samazināšanas izsekotājs'!$B13)=0,0,'Svara samazināšanas izsekotājs'!$B13)),\"\")","v":"2022-02-23"},{"$f":"IFERROR(IF(A10,0,IF(LEN('Svara samazināšanas izsekotājs'!$C13)=0,0,'Svara samazināšanas izsekotājs'!$C13)),\"\")","v":174},{"$nulls":4},{"$error":"#N/A"},{"$error":"#N/A"},{"$f":"IFERROR(AVERAGEIFS(Svars[SVARS],Svars[DATUMS],\">=\"&$H10,Svars[DATUMS],\"<=\"&$I10),NA())","v":{"$error":"#N/A"}}]
[{"$f":"IF((LEN('Svara samazināšanas izsekotājs'!$C14)=0),TRUE)","v":false},{"$f":"IFERROR(IF(A11,0,IF(LEN('Svara samazināšanas izsekotājs'!$B14)=0,0,'Svara samazināšanas izsekotājs'!$B14)),\"\")","v":"2022-03-02"},{"$f":"IFERROR(IF(A11,0,IF(LEN('Svara samazināšanas izsekotājs'!$C14)=0,0,'Svara samazināšanas izsekotājs'!$C14)),\"\")","v":173.5},{"$nulls":4},{"$error":"#N/A"},{"$error":"#N/A"},{"$f":"IFERROR(AVERAGEIFS(Svars[SVARS],Svars[DATUMS],\">=\"&$H11,Svars[DATUMS],\"<=\"&$I11),NA())","v":{"$error":"#N/A"}},{"$nulls":6},{"$f":"MAX($B:$B)","v":"2022-04-06"}]
[{"$f":"IF((LEN('Svara samazināšanas izsekotājs'!$C15)=0),TRUE)","v":false},{"$f":"IFERROR(IF(A12,0,IF(LEN('Svara samazināšanas izsekotājs'!$B15)=0,0,'Svara samazināšanas izsekotājs'!$B15)),\"\")","v":"2022-03-09"},{"$f":"IFERROR(IF(A12,0,IF(LEN('Svara samazināšanas izsekotājs'!$C15)=0,0,'Svara samazināšanas izsekotājs'!$C15)),\"\")","v":173},{"$nulls":4},{"$error":"#N/A"},{"$error":"#N/A"},{"$f":"IFERROR(AVERAGEIFS(Svars[SVARS],Svars[DATUMS],\">=\"&$H12,Svars[DATUMS],\"<=\"&$I12),NA())","v":{"$error":"#N/A"}}]
[{"$f":"IF((LEN('Svara samazināšanas izsekotājs'!$C16)=0),TRUE)","v":false},{"$f":"IFERROR(IF(A13,0,IF(LEN('Svara samazināšanas izsekotājs'!$B16)=0,0,'Svara samazināšanas izsekotājs'!$B16)),\"\")","v":"2022-03-16"},{"$f":"IFERROR(IF(A13,0,IF(LEN('Svara samazināšanas izsekotājs'!$C16)=0,0,'Svara samazināšanas izsekotājs'!$C16)),\"\")","v":172},{"$nulls":4},{"$error":"#N/A"},{"$error":"#N/A"},{"$f":"IFERROR(AVERAGEIFS(Svars[SVARS],Svars[DATUMS],\">=\"&$H13,Svars[DATUMS],\"<=\"&$I13),NA())","v":{"$error":"#N/A"}}]
[{"$f":"IF((LEN('Svara samazināšanas izsekotājs'!$C17)=0),TRUE)","v":false},{"$f":"IFERROR(IF(A14,0,IF(LEN('Svara samazināšanas izsekotājs'!$B17)=0,0,'Svara samazināšanas izsekotājs'!$B17)),\"\")","v":"2022-03-23"},{"$f":"IFERROR(IF(A14,0,IF(LEN('Svara samazināšanas izsekotājs'!$C17)=0,0,'Svara samazināšanas izsekotājs'!$C17)),\"\")","v":172},{"$nulls":4},{"$error":"#N/A"},{"$error":"#N/A"},{"$f":"IFERROR(AVERAGEIFS(Svars[SVARS],Svars[DATUMS],\">=\"&$H14,Svars[DATUMS],\"<=\"&$I14),NA())","v":{"$error":"#N/A"}}]
[{"$f":"IF((LEN('Svara samazināšanas izsekotājs'!$C18)=0),TRUE)","v":false},{"$f":"IFERROR(IF(A15,0,IF(LEN('Svara samazināšanas izsekotājs'!$B18)=0,0,'Svara samazināšanas izsekotājs'!$B18)),\"\")","v":"2022-03-30"},{"$f":"IFERROR(IF(A15,0,IF(LEN('Svara samazināšanas izsekotājs'!$C18)=0,0,'Svara samazināšanas izsekotājs'!$C18)),\"\")","v":173},{"$nulls":4},{"$error":"#N/A"},{"$error":"#N/A"},{"$f":"IFERROR(AVERAGEIFS(Svars[SVARS],Svars[DATUMS],\">=\"&$H15,Svars[DATUMS],\"<=\"&$I15),NA())","v":{"$error":"#N/A"}}]
[{"$f":"IF((LEN('Svara samazināšanas izsekotājs'!$C19)=0),TRUE)","v":false},{"$f":"IFERROR(IF(A16,0,IF(LEN('Svara samazināšanas izsekotājs'!$B19)=0,0,'Svara samazināšanas izsekotājs'!$B19)),\"\")","v":"2022-04-06"},{"$f":"IFERROR(IF(A16,0,IF(LEN('Svara samazināšanas izsekotājs'!$C19)=0,0,'Svara samazināšanas izsekotājs'!$C19)),\"\")","v":172},{"$nulls":4},{"$error":"#N/A"},{"$error":"#N/A"},{"$f":"IFERROR(AVERAGEIFS(Svars[SVARS],Svars[DATUMS],\">=\"&$H16,Svars[DATUMS],\"<=\"&$I16),NA())","v":{"$error":"#N/A"}}]
[{"$f":"IF((LEN('Svara samazināšanas izsekotājs'!$C20)=0),TRUE)","v":true},{"$f":"IFERROR(IF(A17,0,IF(LEN('Svara samazināšanas izsekotājs'!$B20)=0,0,'Svara samazināšanas izsekotājs'!$B20)),\"\")","v":"00:00:00"},{"$f":"IFERROR(IF(A17,0,IF(LEN('Svara samazināšanas izsekotājs'!$C20)=0,0,'Svara samazināšanas izsekotājs'!$C20)),\"\")","v":0},{"$nulls":4},{"$error":"#N/A"},{"$error":"#N/A"},{"$f":"IFERROR(AVERAGEIFS(Svars[SVARS],Svars[DATUMS],\">=\"&$H17,Svars[DATUMS],\"<=\"&$I17),NA())","v":{"$error":"#N/A"}}]
[{"$f":"IF((LEN('Svara samazināšanas izsekotājs'!$C21)=0),TRUE)","v":true},{"$f":"IFERROR(IF(A18,0,IF(LEN('Svara samazināšanas izsekotājs'!$B21)=0,0,'Svara samazināšanas izsekotājs'!$B21)),\"\")","v":"00:00:00"},{"$f":"IFERROR(IF(A18,0,IF(LEN('Svara samazināšanas izsekotājs'!$C21)=0,0,'Svara samazināšanas izsekotājs'!$C21)),\"\")","v":0},{"$nulls":4},{"$error":"#N/A"},{"$error":"#N/A"},{"$f":"IFERROR(AVERAGEIFS(Svars[SVARS],Svars[DATUMS],\">=\"&$H18,Svars[DATUMS],\"<=\"&$I18),NA())","v":{"$error":"#N/A"}}]
[{"$f":"IF((LEN('Svara samazināšanas izsekotājs'!$C22)=0),TRUE)","v":true},{"$f":"IFERROR(IF(A19,0,IF(LEN('Svara samazināšanas izsekotājs'!$B22)=0,0,'Svara samazināšanas izsekotājs'!$B22)),\"\")","v":"00:00:00"},{"$f":"IFERROR(IF(A19,0,IF(LEN('Svara samazināšanas izsekotājs'!$C22)=0,0,'Svara samazināšanas izsekotājs'!$C22)),\"\")","v":0},{"$nulls":4},{"$error":"#N/A"},{"$error":"#N/A"},{"$f":"IFERROR(AVERAGEIFS(Svars[SVARS],Svars[DATUMS],\">=\"&$H19,Svars[DATUMS],\"<=\"&$I19),NA())","v":{"$error":"#N/A"}}]
[{"$f":"IF((LEN('Svara samazināšanas izsekotājs'!$C23)=0),TRUE)","v":true},{"$f":"IFERROR(IF(A20,0,IF(LEN('Svara samazināšanas izsekotājs'!$B23)=0,0,'Svara samazināšanas izsekotājs'!$B23)),\"\")","v":"00:00:00"},{"$f":"IFERROR(IF(A20,0,IF(LEN('Svara samazināšanas izsekotājs'!$C23)=0,0,'Svara samazināšanas izsekotājs'!$C23)),\"\")","v":0},{"$nulls":4},{"$error":"#N/A"},{"$error":"#N/A"},{"$f":"IFERROR(AVERAGEIFS(Svars[SVARS],Svars[DATUMS],\">=\"&$H20,Svars[DATUMS],\"<=\"&$I20),NA())","v":{"$error":"#N/A"}}]
[{"$f":"IF((LEN('Svara samazināšanas izsekotājs'!$C24)=0),TRUE)","v":true},{"$f":"IFERROR(IF(A21,0,IF(LEN('Svara samazināšanas izsekotājs'!$B24)=0,0,'Svara samazināšanas izsekotājs'!$B24)),\"\")","v":"00:00:00"},{"$f":"IFERROR(IF(A21,0,IF(LEN('Svara samazināšanas izsekotājs'!$C24)=0,0,'Svara samazināšanas izsekotājs'!$C24)),\"\")","v":0},{"$nulls":4},{"$error":"#N/A"},{"$error":"#N/A"},{"$f":"IFERROR(AVERAGEIFS(Svars[SVARS],Svars[DATUMS],\">=\"&$H21,Svars[DATUMS],\"<=\"&$I21),NA())","v":{"$error":"#N/A"}}]
[{"$f":"IF((LEN('Svara samazināšanas izsekotājs'!$C25)=0),TRUE)","v":true},{"$f":"IFERROR(IF(A22,0,IF(LEN('Svara samazināšanas izsekotājs'!$B25)=0,0,'Svara samazināšanas izsekotājs'!$B25)),\"\")","v":"00:00:00"},{"$f":"IFERROR(IF(A22,0,IF(LEN('Svara samazināšanas izsekotājs'!$C25)=0,0,'Svara samazināšanas izsekotājs'!$C25)),\"\")","v":0},{"$nulls":4},{"$error":"#N/A"},{"$error":"#N/A"},{"$f":"IFERROR(AVERAGEIFS(Svars[SVARS],Svars[DATUMS],\">=\"&$H22,Svars[DATUMS],\"<=\"&$I22),NA())","v":{"$error":"#N/A"}}]
[{"$f":"IF((LEN('Svara samazināšanas izsekotājs'!$C26)=0),TRUE)","v":true},{"$f":"IFERROR(IF(A23,0,IF(LEN('Svara samazināšanas izsekotājs'!$B26)=0,0,'Svara samazināšanas izsekotājs'!$B26)),\"\")","v":"00:00:00"},{"$f":"IFERROR(IF(A23,0,IF(LEN('Svara samazināšanas izsekotājs'!$C26)=0,0,'Svara samazināšanas izsekotājs'!$C26)),\"\")","v":0},{"$nulls":4},{"$error":"#N/A"},{"$error":"#N/A"},{"$f":"IFERROR(AVERAGEIFS(Svars[SVARS],Svars[DATUMS],\">=\"&$H23,Svars[DATUMS],\"<=\"&$I23),NA())","v":{"$error":"#N/A"}}]
[{"$f":"IF((LEN('Svara samazināšanas izsekotājs'!$C27)=0),TRUE)","v":true},{"$f":"IFERROR(IF(A24,0,IF(LEN('Svara samazināšanas izsekotājs'!$B27)=0,0,'Svara samazināšanas izsekotājs'!$B27)),\"\")","v":"00:00:00"},{"$f":"IFERROR(IF(A24,0,IF(LEN('Svara samazināšanas izsekotājs'!$C27)=0,0,'Svara samazināšanas izsekotājs'!$C27)),\"\")","v":0},{"$nulls":4},{"$error":"#N/A"},{"$error":"#N/A"},{"$f":"IFERROR(AVERAGEIFS(Svars[SVARS],Svars[DATUMS],\">=\"&$H24,Svars[DATUMS],\"<=\"&$I24),NA())","v":{"$error":"#N/A"}}]
[{"$f":"IF((LEN('Svara samazināšanas izsekotājs'!$C28)=0),TRUE)","v":true},{"$f":"IFERROR(IF(A25,0,IF(LEN('Svara samazināšanas izsekotājs'!$B28)=0,0,'Svara samazināšanas izsekotājs'!$B28)),\"\")","v":"00:00:00"},{"$f":"IFERROR(IF(A25,0,IF(LEN('Svara samazināšanas izsekotājs'!$C28)=0,0,'Svara samazināšanas izsekotājs'!$C28)),\"\")","v":0},{"$nulls":4},{"$error":"#N/A"},{"$error":"#N/A"},{"$f":"IFERROR(AVERAGEIFS(Svars[SVARS],Svars[DATUMS],\">=\"&$H25,Svars[DATUMS],\"<=\"&$I25),NA())","v":{"$error":"#N/A"}}]
[{"$f":"IF((LEN('Svara samazināšanas izsekotājs'!$C29)=0),TRUE)","v":true},{"$f":"IFERROR(IF(A26,0,IF(LEN('Svara samazināšanas izsekotājs'!$B29)=0,0,'Svara samazināšanas izsekotājs'!$B29)),\"\")","v":"00:00:00"},{"$f":"IFERROR(IF(A26,0,IF(LEN('Svara samazināšanas izsekotājs'!$C29)=0,0,'Svara samazināšanas izsekotājs'!$C29)),\"\")","v":0},{"$nulls":4},{"$error":"#N/A"},{"$error":"#N/A"},{"$f":"IFERROR(AVERAGEIFS(Svars[SVARS],Svars[DATUMS],\">=\"&$H26,Svars[DATUMS],\"<=\"&$I26),NA())","v":{"$error":"#N/A"}}]
[{"$f":"IF((LEN('Svara samazināšanas izsekotājs'!$C30)=0),TRUE)","v":true},{"$f":"IFERROR(IF(A27,0,IF(LEN('Svara samazināšanas izsekotājs'!$B30)=0,0,'Svara samazināšanas izsekotājs'!$B30)),\"\")","v":"00:00:00"},{"$f":"IFERROR(IF(A27,0,IF(LEN('Svara samazināšanas izsekotājs'!$C30)=0,0,'Svara samazināšanas izsekotājs'!$C30)),\"\")","v":0},{"$nulls":4},{"$error":"#N/A"},{"$error":"#N/A"},{"$f":"IFERROR(AVERAGEIFS(Svars[SVARS],Svars[DATUMS],\">=\"&$H27,Svars[DATUMS],\"<=\"&$I27),NA())","v":{"$error":"#N/A"}}]
[{"$f":"IF((LEN('Svara samazināšanas izsekotājs'!$C31)=0),TRUE)","v":true},{"$f":"IFERROR(IF(A28,0,IF(LEN('Svara samazināšanas izsekotājs'!$B31)=0,0,'Svara samazināšanas izsekotājs'!$B31)),\"\")","v":"00:00:00"},{"$f":"IFERROR(IF(A28,0,IF(LEN('Svara samazināšanas izsekotājs'!$C31)=0,0,'Svara samazināšanas izsekotājs'!$C31)),\"\")","v":0},{"$nulls":4},{"$error":"#N/A"},{"$error":"#N/A"},{"$f":"IFERROR(AVERAGEIFS(Svars[SVARS],Svars[DATUMS],\">=\"&$H28,Svars[DATUMS],\"<=\"&$I28),NA())","v":{"$error":"#N/A"}}]
[{"$f":"IF((LEN('Svara samazināšanas izsekotājs'!$C32)=0),TRUE)","v":true},{"$f":"IFERROR(IF(A29,0,IF(LEN('Svara samazināšanas izsekotājs'!$B32)=0,0,'Svara samazināšanas izsekotājs'!$B32)),\"\")","v":"00:00:00"},{"$f":"IFERROR(IF(A29,0,IF(LEN('Svara samazināšanas izsekotājs'!$C32)=0,0,'Svara samazināšanas izsekotājs'!$C32)),\"\")","v":0}]
[{"$f":"IF((LEN('Svara samazināšanas izsekotājs'!$C33)=0),TRUE)","v":true},{"$f":"IFERROR(IF(A30,0,IF(LEN('Svara samazināšanas izsekotājs'!$B33)=0,0,'Svara samazināšanas izsekotājs'!$B33)),\"\")","v":"00:00:00"},{"$f":"IFERROR(IF(A30,0,IF(LEN('Svara samazināšanas izsekotājs'!$C33)=0,0,'Svara samazināšanas izsekotājs'!$C33)),\"\")","v":0}]
[{"$f":"IF((LEN('Svara samazināšanas izsekotājs'!$C34)=0),TRUE)","v":true},{"$f":"IFERROR(IF(A31,0,IF(LEN('Svara samazināšanas izsekotājs'!$B34)=0,0,'Svara samazināšanas izsekotājs'!$B34)),\"\")","v":"00:00:00"},{"$f":"IFERROR(IF(A31,0,IF(LEN('Svara samazināšanas izsekotājs'!$C34)=0,0,'Svara samazināšanas izsekotājs'!$C34)),\"\")","v":0}]
[{"$f":"IF((LEN('Svara samazināšanas izsekotājs'!$C35)=0),TRUE)","v":true},{"$f":"IFERROR(IF(A32,0,IF(LEN('Svara samazināšanas izsekotājs'!$B35)=0,0,'Svara samazināšanas izsekotājs'!$B35)),\"\")","v":"00:00:00"},{"$f":"IFERROR(IF(A32,0,IF(LEN('Svara samazināšanas izsekotājs'!$C35)=0,0,'Svara samazināšanas izsekotājs'!$C35)),\"\")","v":0}]
[{"$f":"IF((LEN('Svara samazināšanas izsekotājs'!$C36)=0),TRUE)","v":true},{"$f":"IFERROR(IF(A33,0,IF(LEN('Svara samazināšanas izsekotājs'!$B36)=0,0,'Svara samazināšanas izsekotājs'!$B36)),\"\")","v":"00:00:00"},{"$f":"IFERROR(IF(A33,0,IF(LEN('Svara samazināšanas izsekotājs'!$C36)=0,0,'Svara samazināšanas izsekotājs'!$C36)),\"\")","v":0}]
[{"$f":"IF((LEN('Svara samazināšanas izsekotājs'!$C37)=0),TRUE)","v":true},{"$f":"IFERROR(IF(A34,0,IF(LEN('Svara samazināšanas izsekotājs'!$B37)=0,0,'Svara samazināšanas izsekotājs'!$B37)),\"\")","v":"00:00:00"},{"$f":"IFERROR(IF(A34,0,IF(LEN('Svara samazināšanas izsekotājs'!$C37)=0,0,'Svara samazināšanas izsekotājs'!$C37)),\"\")","v":0}]
[{"$f":"IF((LEN('Svara samazināšanas izsekotājs'!$C38)=0),TRUE)","v":true},{"$f":"IFERROR(IF(A35,0,IF(LEN('Svara samazināšanas izsekotājs'!$B38)=0,0,'Svara samazināšanas izsekotājs'!$B38)),\"\")","v":"00:00:00"},{"$f":"IFERROR(IF(A35,0,IF(LEN('Svara samazināšanas izsekotājs'!$C38)=0,0,'Svara samazināšanas izsekotājs'!$C38)),\"\")","v":0}]
[{"$f":"IF((LEN('Svara samazināšanas izsekotājs'!$C39)=0),TRUE)","v":true},{"$f":"IFERROR(IF(A36,0,IF(LEN('Svara samazināšanas izsekotājs'!$B39)=0,0,'Svara samazināšanas izsekotājs'!$B39)),\"\")","v":"00:00:00"},{"$f":"IFERROR(IF(A36,0,IF(LEN('Svara samazināšanas izsekotājs'!$C39)=0,0,'Svara samazināšanas izsekotājs'!$C39)),\"\")","v":0}]
[{"$f":"IF((LEN('Svara samazināšanas izsekotājs'!$C40)=0),TRUE)","v":true},{"$f":"IFERROR(IF(A37,0,IF(LEN('Svara samazināšanas izsekotājs'!$B40)=0,0,'Svara samazināšanas izsekotājs'!$B40)),\"\")","v":"00:00:00"},{"$f":"IFERROR(IF(A37,0,IF(LEN('Svara samazināšanas izsekotājs'!$C40)=0,0,'Svara samazināšanas izsekotājs'!$C40)),\"\")","v":0}]
[{"$f":"IF((LEN('Svara samazināšanas izsekotājs'!$C41)=0),TRUE)","v":true},{"$f":"IFERROR(IF(A38,0,IF(LEN('Svara samazināšanas izsekotājs'!$B41)=0,0,'Svara samazināšanas izsekotājs'!$B41)),\"\")","v":"00:00:00"},{"$f":"IFERROR(IF(A38,0,IF(LEN('Svara samazināšanas izsekotājs'!$C41)=0,0,'Svara samazināšanas izsekotājs'!$C41)),\"\")","v":0}]
[{"$f":"IF((LEN('Svara samazināšanas izsekotājs'!$C42)=0),TRUE)","v":true},{"$f":"IFERROR(IF(A39,0,IF(LEN('Svara samazināšanas izsekotājs'!$B42)=0,0,'Svara samazināšanas izsekotājs'!$B42)),\"\")","v":"00:00:00"},{"$f":"IFERROR(IF(A39,0,IF(LEN('Svara samazināšanas izsekotājs'!$C42)=0,0,'Svara samazināšanas izsekotājs'!$C42)),\"\")","v":0}]
[{"$f":"IF((LEN('Svara samazināšanas izsekotājs'!$C43)=0),TRUE)","v":true},{"$f":"IFERROR(IF(A40,0,IF(LEN('Svara samazināšanas izsekotājs'!$B43)=0,0,'Svara samazināšanas izsekotājs'!$B43)),\"\")","v":"00:00:00"},{"$f":"IFERROR(IF(A40,0,IF(LEN('Svara samazināšanas izsekotājs'!$C43)=0,0,'Svara samazināšanas izsekotājs'!$C43)),\"\")","v":0}]
[{"$f":"IF((LEN('Svara samazināšanas izsekotājs'!$C44)=0),TRUE)","v":true},{"$f":"IFERROR(IF(A41,0,IF(LEN('Svara samazināšanas izsekotājs'!$B44)=0,0,'Svara samazināšanas izsekotājs'!$B44)),\"\")","v":"00:00:00"},{"$f":"IFERROR(IF(A41,0,IF(LEN('Svara samazināšanas izsekotājs'!$C44)=0,0,'Svara samazināšanas izsekotājs'!$C44)),\"\")","v":0}]
[{"$f":"IF((LEN('Svara samazināšanas izsekotājs'!$C45)=0),TRUE)","v":true},{"$f":"IFERROR(IF(A42,0,IF(LEN('Svara samazināšanas izsekotājs'!$B45)=0,0,'Svara samazināšanas izsekotājs'!$B45)),\"\")","v":"00:00:00"},{"$f":"IFERROR(IF(A42,0,IF(LEN('Svara samazināšanas izsekotājs'!$C45)=0,0,'Svara samazināšanas izsekotājs'!$C45)),\"\")","v":0}]
[{"$f":"IF((LEN('Svara samazināšanas izsekotājs'!$C46)=0),TRUE)","v":true},{"$f":"IFERROR(IF(A43,0,IF(LEN('Svara samazināšanas izsekotājs'!$B46)=0,0,'Svara samazināšanas izsekotājs'!$B46)),\"\")","v":"00:00:00"},{"$f":"IFERROR(IF(A43,0,IF(LEN('Svara samazināšanas izsekotājs'!$C46)=0,0,'Svara samazināšanas izsekotājs'!$C46)),\"\")","v":0}]
[{"$f":"IF((LEN('Svara samazināšanas izsekotājs'!$C47)=0),TRUE)","v":true},{"$f":"IFERROR(IF(A44,0,IF(LEN('Svara samazināšanas izsekotājs'!$B47)=0,0,'Svara samazināšanas izsekotājs'!$B47)),\"\")","v":"00:00:00"},{"$f":"IFERROR(IF(A44,0,IF(LEN('Svara samazināšanas izsekotājs'!$C47)=0,0,'Svara samazināšanas izsekotājs'!$C47)),\"\")","v":0}]
[{"$f":"IF((LEN('Svara samazināšanas izsekotājs'!$C48)=0),TRUE)","v":true},{"$f":"IFERROR(IF(A45,0,IF(LEN('Svara samazināšanas izsekotājs'!$B48)=0,0,'Svara samazināšanas izsekotājs'!$B48)),\"\")","v":"00:00:00"},{"$f":"IFERROR(IF(A45,0,IF(LEN('Svara samazināšanas izsekotājs'!$C48)=0,0,'Svara samazināšanas izsekotājs'!$C48)),\"\")","v":0}]
[{"$f":"IF((LEN('Svara samazināšanas izsekotājs'!$C49)=0),TRUE)","v":true},{"$f":"IFERROR(IF(A46,0,IF(LEN('Svara samazināšanas izsekotājs'!$B49)=0,0,'Svara samazināšanas izsekotājs'!$B49)),\"\")","v":"00:00:00"},{"$f":"IFERROR(IF(A46,0,IF(LEN('Svara samazināšanas izsekotājs'!$C49)=0,0,'Svara samazināšanas izsekotājs'!$C49)),\"\")","v":0}]
[{"$f":"IF((LEN('Svara samazināšanas izsekotājs'!$C50)=0),TRUE)","v":true},{"$f":"IFERROR(IF(A47,0,IF(LEN('Svara samazināšanas izsekotājs'!$B50)=0,0,'Svara samazināšanas izsekotājs'!$B50)),\"\")","v":"00:00:00"},{"$f":"IFERROR(IF(A47,0,IF(LEN('Svara samazināšanas izsekotājs'!$C50)=0,0,'Svara samazināšanas izsekotājs'!$C50)),\"\")","v":0}]
[{"$f":"IF((LEN('Svara samazināšanas izsekotājs'!$C51)=0),TRUE)","v":true},{"$f":"IFERROR(IF(A48,0,IF(LEN('Svara samazināšanas izsekotājs'!$B51)=0,0,'Svara samazināšanas izsekotājs'!$B51)),\"\")","v":"00:00:00"},{"$f":"IFERROR(IF(A48,0,IF(LEN('Svara samazināšanas izsekotājs'!$C51)=0,0,'Svara samazināšanas izsekotājs'!$C51)),\"\")","v":0}]
[{"$f":"IF((LEN('Svara samazināšanas izsekotājs'!$C52)=0),TRUE)","v":true},{"$f":"IFERROR(IF(A49,0,IF(LEN('Svara samazināšanas izsekotājs'!$B52)=0,0,'Svara samazināšanas izsekotājs'!$B52)),\"\")","v":"00:00:00"},{"$f":"IFERROR(IF(A49,0,IF(LEN('Svara samazināšanas izsekotājs'!$C52)=0,0,'Svara samazināšanas izsekotājs'!$C52)),\"\")","v":0}]
[{"$f":"IF((LEN('Svara samazināšanas izsekotājs'!$C53)=0),TRUE)","v":true},{"$f":"IFERROR(IF(A50,0,IF(LEN('Svara samazināšanas izsekotājs'!$B53)=0,0,'Svara samazināšanas izsekotājs'!$B53)),\"\")","v":"00:00:00"},{"$f":"IFERROR(IF(A50,0,IF(LEN('Svara samazināšanas izsekotājs'!$C53)=0,0,'Svara samazināšanas izsekotājs'!$C53)),\"\")","v":0}]
[{"$f":"IF((LEN('Svara samazināšanas izsekotājs'!$C54)=0),TRUE)","v":true},{"$f":"IFERROR(IF(A51,0,IF(LEN('Svara samazināšanas izsekotājs'!$B54)=0,0,'Svara samazināšanas izsekotājs'!$B54)),\"\")","v":"00:00:00"},{"$f":"IFERROR(IF(A51,0,IF(LEN('Svara samazināšanas izsekotājs'!$C54)=0,0,'Svara samazināšanas izsekotājs'!$C54)),\"\")","v":0}]
[{"$f":"IF((LEN('Svara samazināšanas izsekotājs'!$C55)=0),TRUE)","v":true},{"$f":"IFERROR(IF(A52,0,IF(LEN('Svara samazināšanas izsekotājs'!$B55)=0,0,'Svara samazināšanas izsekotājs'!$B55)),\"\")","v":"00:00:00"},{"$f":"IFERROR(IF(A52,0,IF(LEN('Svara samazināšanas izsekotājs'!$C55)=0,0,'Svara samazināšanas izsekotājs'!$C55)),\"\")","v":0}]
[{"$f":"IF((LEN('Svara samazināšanas izsekotājs'!$C56)=0),TRUE)","v":true},{"$f":"IFERROR(IF(A53,0,IF(LEN('Svara samazināšanas izsekotājs'!$B56)=0,0,'Svara samazināšanas izsekotājs'!$B56)),\"\")","v":"00:00:00"},{"$f":"IFERROR(IF(A53,0,IF(LEN('Svara samazināšanas izsekotājs'!$C56)=0,0,'Svara samazināšanas izsekotājs'!$C56)),\"\")","v":0}]
[{"$f":"IF((LEN('Svara samazināšanas izsekotājs'!$C57)=0),TRUE)","v":true},{"$f":"IFERROR(IF(A54,0,IF(LEN('Svara samazināšanas izsekotājs'!$B57)=0,0,'Svara samazināšanas izsekotājs'!$B57)),\"\")","v":"00:00:00"},{"$f":"IFERROR(IF(A54,0,IF(LEN('Svara samazināšanas izsekotājs'!$C57)=0,0,'Svara samazināšanas izsekotājs'!$C57)),\"\")","v":0}]
[{"$f":"IF((LEN('Svara samazināšanas izsekotājs'!$C58)=0),TRUE)","v":true},{"$f":"IFERROR(IF(A55,0,IF(LEN('Svara samazināšanas izsekotājs'!$B58)=0,0,'Svara samazināšanas izsekotājs'!$B58)),\"\")","v":"00:00:00"},{"$f":"IFERROR(IF(A55,0,IF(LEN('Svara samazināšanas izsekotājs'!$C58)=0,0,'Svara samazināšanas izsekotājs'!$C58)),\"\")","v":0}]
[{"$f":"IF((LEN('Svara samazināšanas izsekotājs'!$C59)=0),TRUE)","v":true},{"$f":"IFERROR(IF(A56,0,IF(LEN('Svara samazināšanas izsekotājs'!$B59)=0,0,'Svara samazināšanas izsekotājs'!$B59)),\"\")","v":"00:00:00"},{"$f":"IFERROR(IF(A56,0,IF(LEN('Svara samazināšanas izsekotājs'!$C59)=0,0,'Svara samazināšanas izsekotājs'!$C59)),\"\")","v":0}]
[{"$f":"IF((LEN('Svara samazināšanas izsekotājs'!$C60)=0),TRUE)","v":true},{"$f":"IFERROR(IF(A57,0,IF(LEN('Svara samazināšanas izsekotājs'!$B60)=0,0,'Svara samazināšanas izsekotājs'!$B60)),\"\")","v":"00:00:00"},{"$f":"IFERROR(IF(A57,0,IF(LEN('Svara samazināšanas izsekotājs'!$C60)=0,0,'Svara samazināšanas izsekotājs'!$C60)),\"\")","v":0}]
[{"$f":"IF((LEN('Svara samazināšanas izsekotājs'!$C61)=0),TRUE)","v":true},{"$f":"IFERROR(IF(A58,0,IF(LEN('Svara samazināšanas izsekotājs'!$B61)=0,0,'Svara samazināšanas izsekotājs'!$B61)),\"\")","v":"00:00:00"},{"$f":"IFERROR(IF(A58,0,IF(LEN('Svara samazināšanas izsekotājs'!$C61)=0,0,'Svara samazināšanas izsekotājs'!$C61)),\"\")","v":0}]
[{"$f":"IF((LEN('Svara samazināšanas izsekotājs'!$C62)=0),TRUE)","v":true},{"$f":"IFERROR(IF(A59,0,IF(LEN('Svara samazināšanas izsekotājs'!$B62)=0,0,'Svara samazināšanas izsekotājs'!$B62)),\"\")","v":"00:00:00"},{"$f":"IFERROR(IF(A59,0,IF(LEN('Svara samazināšanas izsekotājs'!$C62)=0,0,'Svara samazināšanas izsekotājs'!$C62)),\"\")","v":0}]
[{"$f":"IF((LEN('Svara samazināšanas izsekotājs'!$C63)=0),TRUE)","v":true},{"$f":"IFERROR(IF(A60,0,IF(LEN('Svara samazināšanas izsekotājs'!$B63)=0,0,'Svara samazināšanas izsekotājs'!$B63)),\"\")","v":"00:00:00"},{"$f":"IFERROR(IF(A60,0,IF(LEN('Svara samazināšanas izsekotājs'!$C63)=0,0,'Svara samazināšanas izsekotājs'!$C63)),\"\")","v":0}]
[{"$f":"IF((LEN('Svara samazināšanas izsekotājs'!$C64)=0),TRUE)","v":true},{"$f":"IFERROR(IF(A61,0,IF(LEN('Svara samazināšanas izsekotājs'!$B64)=0,0,'Svara samazināšanas izsekotājs'!$B64)),\"\")","v":"00:00:00"},{"$f":"IFERROR(IF(A61,0,IF(LEN('Svara samazināšanas izsekotājs'!$C64)=0,0,'Svara samazināšanas izsekotājs'!$C64)),\"\")","v":0}]
[{"$f":"IF((LEN('Svara samazināšanas izsekotājs'!$C65)=0),TRUE)","v":true},{"$f":"IFERROR(IF(A62,0,IF(LEN('Svara samazināšanas izsekotājs'!$B65)=0,0,'Svara samazināšanas izsekotājs'!$B65)),\"\")","v":"00:00:00"},{"$f":"IFERROR(IF(A62,0,IF(LEN('Svara samazināšanas izsekotājs'!$C65)=0,0,'Svara samazināšanas izsekotājs'!$C65)),\"\")","v":0}]
[{"$f":"IF((LEN('Svara samazināšanas izsekotājs'!$C66)=0),TRUE)","v":true},{"$f":"IFERROR(IF(A63,0,IF(LEN('Svara samazināšanas izsekotājs'!$B66)=0,0,'Svara samazināšanas izsekotājs'!$B66)),\"\")","v":"00:00:00"},{"$f":"IFERROR(IF(A63,0,IF(LEN('Svara samazināšanas izsekotājs'!$C66)=0,0,'Svara samazināšanas izsekotājs'!$C66)),\"\")","v":0}]
[{"$f":"IF((LEN('Svara samazināšanas izsekotājs'!$C67)=0),TRUE)","v":true},{"$f":"IFERROR(IF(A64,0,IF(LEN('Svara samazināšanas izsekotājs'!$B67)=0,0,'Svara samazināšanas izsekotājs'!$B67)),\"\")","v":"00:00:00"},{"$f":"IFERROR(IF(A64,0,IF(LEN('Svara samazināšanas izsekotājs'!$C67)=0,0,'Svara samazināšanas izsekotājs'!$C67)),\"\")","v":0}]
[{"$f":"IF((LEN('Svara samazināšanas izsekotājs'!$C68)=0),TRUE)","v":true},{"$f":"IFERROR(IF(A65,0,IF(LEN('Svara samazināšanas izsekotājs'!$B68)=0,0,'Svara samazināšanas izsekotājs'!$B68)),\"\")","v":"00:00:00"},{"$f":"IFERROR(IF(A65,0,IF(LEN('Svara samazināšanas izsekotājs'!$C68)=0,0,'Svara samazināšanas izsekotājs'!$C68)),\"\")","v":0}]
[{"$f":"IF((LEN('Svara samazināšanas izsekotājs'!$C69)=0),TRUE)","v":true},{"$f":"IFERROR(IF(A66,0,IF(LEN('Svara samazināšanas izsekotājs'!$B69)=0,0,'Svara samazināšanas izsekotājs'!$B69)),\"\")","v":"00:00:00"},{"$f":"IFERROR(IF(A66,0,IF(LEN('Svara samazināšanas izsekotājs'!$C69)=0,0,'Svara samazināšanas izsekotājs'!$C69)),\"\")","v":0}]
[{"$f":"IF((LEN('Svara samazināšanas izsekotājs'!$C70)=0),TRUE)","v":true},{"$f":"IFERROR(IF(A67,0,IF(LEN('Svara samazināšanas izsekotājs'!$B70)=0,0,'Svara samazināšanas izsekotājs'!$B70)),\"\")","v":"00:00:00"},{"$f":"IFERROR(IF(A67,0,IF(LEN('Svara samazināšanas izsekotājs'!$C70)=0,0,'Svara samazināšanas izsekotājs'!$C70)),\"\")","v":0}]
[{"$f":"IF((LEN('Svara samazināšanas izsekotājs'!$C71)=0),TRUE)","v":true},{"$f":"IFERROR(IF(A68,0,IF(LEN('Svara samazināšanas izsekotājs'!$B71)=0,0,'Svara samazināšanas izsekotājs'!$B71)),\"\")","v":"00:00:00"},{"$f":"IFERROR(IF(A68,0,IF(LEN('Svara samazināšanas izsekotājs'!$C71)=0,0,'Svara samazināšanas izsekotājs'!$C71)),\"\")","v":0}]
[{"$f":"IF((LEN('Svara samazināšanas izsekotājs'!$C72)=0),TRUE)","v":true},{"$f":"IFERROR(IF(A69,0,IF(LEN('Svara samazināšanas izsekotājs'!$B72)=0,0,'Svara samazināšanas izsekotājs'!$B72)),\"\")","v":"00:00:00"},{"$f":"IFERROR(IF(A69,0,IF(LEN('Svara samazināšanas izsekotājs'!$C72)=0,0,'Svara samazināšanas izsekotājs'!$C72)),\"\")","v":0}]
[{"$f":"IF((LEN('Svara samazināšanas izsekotājs'!$C73)=0),TRUE)","v":true},{"$f":"IFERROR(IF(A70,0,IF(LEN('Svara samazināšanas izsekotājs'!$B73)=0,0,'Svara samazināšanas izsekotājs'!$B73)),\"\")","v":"00:00:00"},{"$f":"IFERROR(IF(A70,0,IF(LEN('Svara samazināšanas izsekotājs'!$C73)=0,0,'Svara samazināšanas izsekotājs'!$C73)),\"\")","v":0}]
[{"$f":"IF((LEN('Svara samazināšanas izsekotājs'!$C74)=0),TRUE)","v":true},{"$f":"IFERROR(IF(A71,0,IF(LEN('Svara samazināšanas izsekotājs'!$B74)=0,0,'Svara samazināšanas izsekotājs'!$B74)),\"\")","v":"00:00:00"},{"$f":"IFERROR(IF(A71,0,IF(LEN('Svara samazināšanas izsekotājs'!$C74)=0,0,'Svara samazināšanas izsekotājs'!$C74)),\"\")","v":0}]
[{"$f":"IF((LEN('Svara samazināšanas izsekotājs'!$C75)=0),TRUE)","v":true},{"$f":"IFERROR(IF(A72,0,IF(LEN('Svara samazināšanas izsekotājs'!$B75)=0,0,'Svara samazināšanas izsekotājs'!$B75)),\"\")","v":"00:00:00"},{"$f":"IFERROR(IF(A72,0,IF(LEN('Svara samazināšanas izsekotājs'!$C75)=0,0,'Svara samazināšanas izsekotājs'!$C75)),\"\")","v":0}]
[{"$f":"IF((LEN('Svara samazināšanas izsekotājs'!$C76)=0),TRUE)","v":true},{"$f":"IFERROR(IF(A73,0,IF(LEN('Svara samazināšanas izsekotājs'!$B76)=0,0,'Svara samazināšanas izsekotājs'!$B76)),\"\")","v":"00:00:00"},{"$f":"IFERROR(IF(A73,0,IF(LEN('Svara samazināšanas izsekotājs'!$C76)=0,0,'Svara samazināšanas izsekotājs'!$C76)),\"\")","v":0}]
[{"$f":"IF((LEN('Svara samazināšanas izsekotājs'!$C77)=0),TRUE)","v":true},{"$f":"IFERROR(IF(A74,0,IF(LEN('Svara samazināšanas izsekotājs'!$B77)=0,0,'Svara samazināšanas izsekotājs'!$B77)),\"\")","v":"00:00:00"},{"$f":"IFERROR(IF(A74,0,IF(LEN('Svara samazināšanas izsekotājs'!$C77)=0,0,'Svara samazināšanas izsekotājs'!$C77)),\"\")","v":0}]
[{"$f":"IF((LEN('Svara samazināšanas izsekotājs'!$C78)=0),TRUE)","v":true},{"$f":"IFERROR(IF(A75,0,IF(LEN('Svara samazināšanas izsekotājs'!$B78)=0,0,'Svara samazināšanas izsekotājs'!$B78)),\"\")","v":"00:00:00"},{"$f":"IFERROR(IF(A75,0,IF(LEN('Svara samazināšanas izsekotājs'!$C78)=0,0,'Svara samazināšanas izsekotājs'!$C78)),\"\")","v":0}]
[{"$f":"IF((LEN('Svara samazināšanas izsekotājs'!$C79)=0),TRUE)","v":true},{"$f":"IFERROR(IF(A76,0,IF(LEN('Svara samazināšanas izsekotājs'!$B79)=0,0,'Svara samazināšanas izsekotājs'!$B79)),\"\")","v":"00:00:00"},{"$f":"IFERROR(IF(A76,0,IF(LEN('Svara samazināšanas izsekotājs'!$C79)=0,0,'Svara samazināšanas izsekotājs'!$C79)),\"\")","v":0}]
[{"$f":"IF((LEN('Svara samazināšanas izsekotājs'!$C80)=0),TRUE)","v":true},{"$f":"IFERROR(IF(A77,0,IF(LEN('Svara samazināšanas izsekotājs'!$B80)=0,0,'Svara samazināšanas izsekotājs'!$B80)),\"\")","v":"00:00:00"},{"$f":"IFERROR(IF(A77,0,IF(LEN('Svara samazināšanas izsekotājs'!$C80)=0,0,'Svara samazināšanas izsekotājs'!$C80)),\"\")","v":0}]
[{"$f":"IF((LEN('Svara samazināšanas izsekotājs'!$C81)=0),TRUE)","v":true},{"$f":"IFERROR(IF(A78,0,IF(LEN('Svara samazināšanas izsekotājs'!$B81)=0,0,'Svara samazināšanas izsekotājs'!$B81)),\"\")","v":"00:00:00"},{"$f":"IFERROR(IF(A78,0,IF(LEN('Svara samazināšanas izsekotājs'!$C81)=0,0,'Svara samazināšanas izsekotājs'!$C81)),\"\")","v":0}]
[{"$f":"IF((LEN('Svara samazināšanas izsekotājs'!$C82)=0),TRUE)","v":true},{"$f":"IFERROR(IF(A79,0,IF(LEN('Svara samazināšanas izsekotājs'!$B82)=0,0,'Svara samazināšanas izsekotājs'!$B82)),\"\")","v":"00:00:00"},{"$f":"IFERROR(IF(A79,0,IF(LEN('Svara samazināšanas izsekotājs'!$C82)=0,0,'Svara samazināšanas izsekotājs'!$C82)),\"\")","v":0}]
[{"$f":"IF((LEN('Svara samazināšanas izsekotājs'!$C83)=0),TRUE)","v":true},{"$f":"IFERROR(IF(A80,0,IF(LEN('Svara samazināšanas izsekotājs'!$B83)=0,0,'Svara samazināšanas izsekotājs'!$B83)),\"\")","v":"00:00:00"},{"$f":"IFERROR(IF(A80,0,IF(LEN('Svara samazināšanas izsekotājs'!$C83)=0,0,'Svara samazināšanas izsekotājs'!$C83)),\"\")","v":0}]
[{"$f":"IF((LEN('Svara samazināšanas izsekotājs'!$C84)=0),TRUE)","v":true},{"$f":"IFERROR(IF(A81,0,IF(LEN('Svara samazināšanas izsekotājs'!$B84)=0,0,'Svara samazināšanas izsekotājs'!$B84)),\"\")","v":"00:00:00"},{"$f":"IFERROR(IF(A81,0,IF(LEN('Svara samazināšanas izsekotājs'!$C84)=0,0,'Svara samazināšanas izsekotājs'!$C84)),\"\")","v":0}]
[{"$f":"IF((LEN('Svara samazināšanas izsekotājs'!$C85)=0),TRUE)","v":true},{"$f":"IFERROR(IF(A82,0,IF(LEN('Svara samazināšanas izsekotājs'!$B85)=0,0,'Svara samazināšanas izsekotājs'!$B85)),\"\")","v":"00:00:00"},{"$f":"IFERROR(IF(A82,0,IF(LEN('Svara samazināšanas izsekotājs'!$C85)=0,0,'Svara samazināšanas izsekotājs'!$C85)),\"\")","v":0}]
[{"$f":"IF((LEN('Svara samazināšanas izsekotājs'!$C86)=0),TRUE)","v":true},{"$f":"IFERROR(IF(A83,0,IF(LEN('Svara samazināšanas izsekotājs'!$B86)=0,0,'Svara samazināšanas izsekotājs'!$B86)),\"\")","v":"00:00:00"},{"$f":"IFERROR(IF(A83,0,IF(LEN('Svara samazināšanas izsekotājs'!$C86)=0,0,'Svara samazināšanas izsekotājs'!$C86)),\"\")","v":0}]
[{"$f":"IF((LEN('Svara samazināšanas izsekotājs'!$C87)=0),TRUE)","v":true},{"$f":"IFERROR(IF(A84,0,IF(LEN('Svara samazināšanas izsekotājs'!$B87)=0,0,'Svara samazināšanas izsekotājs'!$B87)),\"\")","v":"00:00:00"},{"$f":"IFERROR(IF(A84,0,IF(LEN('Svara samazināšanas izsekotājs'!$C87)=0,0,'Svara samazināšanas izsekotājs'!$C87)),\"\")","v":0}]
[{"$f":"IF((LEN('Svara samazināšanas izsekotājs'!$C88)=0),TRUE)","v":true},{"$f":"IFERROR(IF(A85,0,IF(LEN('Svara samazināšanas izsekotājs'!$B88)=0,0,'Svara samazināšanas izsekotājs'!$B88)),\"\")","v":"00:00:00"},{"$f":"IFERROR(IF(A85,0,IF(LEN('Svara samazināšanas izsekotājs'!$C88)=0,0,'Svara samazināšanas izsekotājs'!$C88)),\"\")","v":0}]
[{"$f":"IF((LEN('Svara samazināšanas izsekotājs'!$C89)=0),TRUE)","v":true},{"$f":"IFERROR(IF(A86,0,IF(LEN('Svara samazināšanas izsekotājs'!$B89)=0,0,'Svara samazināšanas izsekotājs'!$B89)),\"\")","v":"00:00:00"},{"$f":"IFERROR(IF(A86,0,IF(LEN('Svara samazināšanas izsekotājs'!$C89)=0,0,'Svara samazināšanas izsekotājs'!$C89)),\"\")","v":0}]
[{"$f":"IF((LEN('Svara samazināšanas izsekotājs'!$C90)=0),TRUE)","v":true},{"$f":"IFERROR(IF(A87,0,IF(LEN('Svara samazināšanas izsekotājs'!$B90)=0,0,'Svara samazināšanas izsekotājs'!$B90)),\"\")","v":"00:00:00"},{"$f":"IFERROR(IF(A87,0,IF(LEN('Svara samazināšanas izsekotājs'!$C90)=0,0,'Svara samazināšanas izsekotājs'!$C90)),\"\")","v":0}]
[{"$f":"IF((LEN('Svara samazināšanas izsekotājs'!$C91)=0),TRUE)","v":true},{"$f":"IFERROR(IF(A88,0,IF(LEN('Svara samazināšanas izsekotājs'!$B91)=0,0,'Svara samazināšanas izsekotājs'!$B91)),\"\")","v":"00:00:00"},{"$f":"IFERROR(IF(A88,0,IF(LEN('Svara samazināšanas izsekotājs'!$C91)=0,0,'Svara samazināšanas izsekotājs'!$C91)),\"\")","v":0}]
[{"$f":"IF((LEN('Svara samazināšanas izsekotājs'!$C92)=0),TRUE)","v":true},{"$f":"IFERROR(IF(A89,0,IF(LEN('Svara samazināšanas izsekotājs'!$B92)=0,0,'Svara samazināšanas izsekotājs'!$B92)),\"\")","v":"00:00:00"},{"$f":"IFERROR(IF(A89,0,IF(LEN('Svara samazināšanas izsekotājs'!$C92)=0,0,'Svara samazināšanas izsekotājs'!$C92)),\"\")","v":0}]
[{"$f":"IF((LEN('Svara samazināšanas izsekotājs'!$C93)=0),TRUE)","v":true},{"$f":"IFERROR(IF(A90,0,IF(LEN('Svara samazināšanas izsekotājs'!$B93)=0,0,'Svara samazināšanas izsekotājs'!$B93)),\"\")","v":"00:00:00"},{"$f":"IFERROR(IF(A90,0,IF(LEN('Svara samazināšanas izsekotājs'!$C93)=0,0,'Svara samazināšanas izsekotājs'!$C93)),\"\")","v":0}]
[{"$f":"IF((LEN('Svara samazināšanas izsekotājs'!$C94)=0),TRUE)","v":true},{"$f":"IFERROR(IF(A91,0,IF(LEN('Svara samazināšanas izsekotājs'!$B94)=0,0,'Svara samazināšanas izsekotājs'!$B94)),\"\")","v":"00:00:00"},{"$f":"IFERROR(IF(A91,0,IF(LEN('Svara samazināšanas izsekotājs'!$C94)=0,0,'Svara samazināšanas izsekotājs'!$C94)),\"\")","v":0}]
[{"$f":"IF((LEN('Svara samazināšanas izsekotājs'!$C95)=0),TRUE)","v":true},{"$f":"IFERROR(IF(A92,0,IF(LEN('Svara samazināšanas izsekotājs'!$B95)=0,0,'Svara samazināšanas izsekotājs'!$B95)),\"\")","v":"00:00:00"},{"$f":"IFERROR(IF(A92,0,IF(LEN('Svara samazināšanas izsekotājs'!$C95)=0,0,'Svara samazināšanas izsekotājs'!$C95)),\"\")","v":0}]
[{"$f":"IF((LEN('Svara samazināšanas izsekotājs'!$C96)=0),TRUE)","v":true},{"$f":"IFERROR(IF(A93,0,IF(LEN('Svara samazināšanas izsekotājs'!$B96)=0,0,'Svara samazināšanas izsekotājs'!$B96)),\"\")","v":"00:00:00"},{"$f":"IFERROR(IF(A93,0,IF(LEN('Svara samazināšanas izsekotājs'!$C96)=0,0,'Svara samazināšanas izsekotājs'!$C96)),\"\")","v":0}]
[{"$f":"IF((LEN('Svara samazināšanas izsekotājs'!$C97)=0),TRUE)","v":true},{"$f":"IFERROR(IF(A94,0,IF(LEN('Svara samazināšanas izsekotājs'!$B97)=0,0,'Svara samazināšanas izsekotājs'!$B97)),\"\")","v":"00:00:00"},{"$f":"IFERROR(IF(A94,0,IF(LEN('Svara samazināšanas izsekotājs'!$C97)=0,0,'Svara samazināšanas izsekotājs'!$C97)),\"\")","v":0}]
[{"$f":"IF((LEN('Svara samazināšanas izsekotājs'!$C98)=0),TRUE)","v":true},{"$f":"IFERROR(IF(A95,0,IF(LEN('Svara samazināšanas izsekotājs'!$B98)=0,0,'Svara samazināšanas izsekotājs'!$B98)),\"\")","v":"00:00:00"},{"$f":"IFERROR(IF(A95,0,IF(LEN('Svara samazināšanas izsekotājs'!$C98)=0,0,'Svara samazināšanas izsekotājs'!$C98)),\"\")","v":0}]
[{"$f":"IF((LEN('Svara samazināšanas izsekotājs'!$C99)=0),TRUE)","v":true},{"$f":"IFERROR(IF(A96,0,IF(LEN('Svara samazināšanas izsekotājs'!$B99)=0,0,'Svara samazināšanas izsekotājs'!$B99)),\"\")","v":"00:00:00"},{"$f":"IFERROR(IF(A96,0,IF(LEN('Svara samazināšanas izsekotājs'!$C99)=0,0,'Svara samazināšanas izsekotājs'!$C99)),\"\")","v":0}]
[{"$f":"IF((LEN('Svara samazināšanas izsekotājs'!$C100)=0),TRUE)","v":true},{"$f":"IFERROR(IF(A97,0,IF(LEN('Svara samazināšanas izsekotājs'!$B100)=0,0,'Svara samazināšanas izsekotājs'!$B100)),\"\")","v":"00:00:00"},{"$f":"IFERROR(IF(A97,0,IF(LEN('Svara samazināšanas izsekotājs'!$C100)=0,0,'Svara samazināšanas izsekotājs'!$C100)),\"\")","v":0}]
[{"$f":"IF((LEN('Svara samazināšanas izsekotājs'!$C101)=0),TRUE)","v":true},{"$f":"IFERROR(IF(A98,0,IF(LEN('Svara samazināšanas izsekotājs'!$B101)=0,0,'Svara samazināšanas izsekotājs'!$B101)),\"\")","v":"00:00:00"},{"$f":"IFERROR(IF(A98,0,IF(LEN('Svara samazināšanas izsekotājs'!$C101)=0,0,'Svara samazināšanas izsekotājs'!$C101)),\"\")","v":0}]
[{"$f":"IF((LEN('Svara samazināšanas izsekotājs'!$C102)=0),TRUE)","v":true},{"$f":"IFERROR(IF(A99,0,IF(LEN('Svara samazināšanas izsekotājs'!$B102)=0,0,'Svara samazināšanas izsekotājs'!$B102)),\"\")","v":"00:00:00"},{"$f":"IFERROR(IF(A99,0,IF(LEN('Svara samazināšanas izsekotājs'!$C102)=0,0,'Svara samazināšanas izsekotājs'!$C102)),\"\")","v":0}]
[{"$f":"IF((LEN('Svara samazināšanas izsekotājs'!$C103)=0),TRUE)","v":true},{"$f":"IFERROR(IF(A100,0,IF(LEN('Svara samazināšanas izsekotājs'!$B103)=0,0,'Svara samazināšanas izsekotājs'!$B103)),\"\")","v":"00:00:00"},{"$f":"IFERROR(IF(A100,0,IF(LEN('Svara samazināšanas izsekotājs'!$C103)=0,0,'Svara samazināšanas izsekotājs'!$C103)),\"\")","v":0}]
[{"$f":"IF((LEN('Svara samazināšanas izsekotājs'!$C104)=0),TRUE)","v":true},{"$f":"IFERROR(IF(A101,0,IF(LEN('Svara samazināšanas izsekotājs'!$B104)=0,0,'Svara samazināšanas izsekotājs'!$B104)),\"\")","v":"00:00:00"},{"$f":"IFERROR(IF(A101,0,IF(LEN('Svara samazināšanas izsekotājs'!$C104)=0,0,'Svara samazināšanas izsekotājs'!$C104)),\"\")","v":0}]
[{"$f":"IF((LEN('Svara samazināšanas izsekotājs'!$C105)=0),TRUE)","v":true},{"$f":"IFERROR(IF(A102,0,IF(LEN('Svara samazināšanas izsekotājs'!$B105)=0,0,'Svara samazināšanas izsekotājs'!$B105)),\"\")","v":"00:00:00"},{"$f":"IFERROR(IF(A102,0,IF(LEN('Svara samazināšanas izsekotājs'!$C105)=0,0,'Svara samazināšanas izsekotājs'!$C105)),\"\")","v":0}]
[{"$f":"IF((LEN('Svara samazināšanas izsekotājs'!$C106)=0),TRUE)","v":true},{"$f":"IFERROR(IF(A103,0,IF(LEN('Svara samazināšanas izsekotājs'!$B106)=0,0,'Svara samazināšanas izsekotājs'!$B106)),\"\")","v":"00:00:00"},{"$f":"IFERROR(IF(A103,0,IF(LEN('Svara samazināšanas izsekotājs'!$C106)=0,0,'Svara samazināšanas izsekotājs'!$C106)),\"\")","v":0}]
[{"$f":"IF((LEN('Svara samazināšanas izsekotājs'!$C107)=0),TRUE)","v":true},{"$f":"IFERROR(IF(A104,0,IF(LEN('Svara samazināšanas izsekotājs'!$B107)=0,0,'Svara samazināšanas izsekotājs'!$B107)),\"\")","v":"00:00:00"},{"$f":"IFERROR(IF(A104,0,IF(LEN('Svara samazināšanas izsekotājs'!$C107)=0,0,'Svara samazināšanas izsekotājs'!$C107)),\"\")","v":0}]
[{"$f":"IF((LEN('Svara samazināšanas izsekotājs'!$C108)=0),TRUE)","v":true},{"$f":"IFERROR(IF(A105,0,IF(LEN('Svara samazināšanas izsekotājs'!$B108)=0,0,'Svara samazināšanas izsekotājs'!$B108)),\"\")","v":"00:00:00"},{"$f":"IFERROR(IF(A105,0,IF(LEN('Svara samazināšanas izsekotājs'!$C108)=0,0,'Svara samazināšanas izsekotājs'!$C108)),\"\")","v":0}]
[{"$f":"IF((LEN('Svara samazināšanas izsekotājs'!$C109)=0),TRUE)","v":true},{"$f":"IFERROR(IF(A106,0,IF(LEN('Svara samazināšanas izsekotājs'!$B109)=0,0,'Svara samazināšanas izsekotājs'!$B109)),\"\")","v":"00:00:00"},{"$f":"IFERROR(IF(A106,0,IF(LEN('Svara samazināšanas izsekotājs'!$C109)=0,0,'Svara samazināšanas izsekotājs'!$C109)),\"\")","v":0}]
[{"$f":"IF((LEN('Svara samazināšanas izsekotājs'!$C110)=0),TRUE)","v":true},{"$f":"IFERROR(IF(A107,0,IF(LEN('Svara samazināšanas izsekotājs'!$B110)=0,0,'Svara samazināšanas izsekotājs'!$B110)),\"\")","v":"00:00:00"},{"$f":"IFERROR(IF(A107,0,IF(LEN('Svara samazināšanas izsekotājs'!$C110)=0,0,'Svara samazināšanas izsekotājs'!$C110)),\"\")","v":0}]